Cogmind - Beta 9.6 @@@ ROGUE MODE // 2020.06.01 @ 16:47:58 Player: RNGesus Result: Destroyed by L-31 Rogue with Katana Performance ------------- Evolutions (2) 1000 Regions Visited (6) 1200 Robots Destroyed (109) 545 Value Destroyed (2966) 2966 Prototype IDs (30) 600 Alien Tech Used (0) 0 Bonus (485) 485 TOTAL SCORE: 6796 Bonus ------- High Alert Combat Kills 218 Follower Combat Kills 103 Aligned with FarCom 300 Friendly Fire -136 Cogmind --------- Core Integrity 0/550 Matter 249/300 Energy 89/100 System Corruption 8% Temperature Cool (0) Movement Treading (170) Location -8/Storage Parts ------- > --- POWER (1) -------- (None) > --- PROPULSION (3) --- Armored Treads Armored Treads Armored Treads > --- UTILITY (5) ------ Improved Cooling System Improved Cooling System Large Storage Unit Large Storage Unit Light Armor Plating > --- WEAPON (2) ------- Improved Assault Rifle Gauss Rifle > --- INVENTORY (16) --- Improved Ion Engine Light Nuclear Core Improved VTOL Module Improved VTOL Module Improved Cooling System Light Armor Plating Hacking Suite Hacking Suite Hacking Suite System Shield Heavy Laser AWS/Thermal Guided EMP Blaster Katana Peak State ------------ > --- POWER ------------ Light Nuclear Core > --- PROPULSION ------- Armored Treads Armored Treads Armored Treads > --- UTILITY ---------- Improved Cooling System Large Storage Unit Large Storage Unit Advanced Targeting Computer Light Armor Plating > --- WEAPON ----------- Guided EMP Blaster > --- INVENTORY -------- Improved Ion Engine Light Nuclear Core Improved VTOL Module Improved VTOL Module Improved Cooling System Improved Cooling System Hacking Suite Hacking Suite Hacking Suite System Shield AWS/Thermal Gauss Rifle Katana [Rating: 39] Favorites ----------- Power Light Nuclear Core Engine Light Ion Engine Power Core Light Nuclear Core Propulsion Light Treads Treads Light Treads Leg Aluminum Leg Wheel Compact Wheel Flight Unit Improved VTOL Module Utility Large Storage Unit Device Cooling System Storage Large Storage Unit Processor Advanced Targeting Computer Hackware Hacking Suite Protection Light Armor Plating Weapon Advanced Beam Cannon Energy Gun Heavy EM Shotgun Energy Cannon Advanced Beam Cannon Ballistic Gun Assault Rifle Launcher Mini Grenade Launcher Slashing Weapon Katana Build | -11 -10 -10 -10 -9 -8 -8 ------- Run | Scr Mat Min Exi Min Mat Sto Slots Evolved 4 | . . . . . 4 . Power . | . . . . . . . Propulsion 1 | . . . . . 1 . Utility 3 | . . . . . 3 . Weapon . | . . . . . . . Parts Attached 123 | 5 14 8 1 3 63 29 Power 7 | 1 . 1 . . 2 3 Engine 3 | 1 . 1 . . 1 . Core 4 | . . . . . 1 3 Reactor . | . . . . . . . Propulsion 33 | 2 2 3 . 2 18 6 Treads 17 | 2 2 . . . 7 6 Leg 10 | . . 1 . 1 8 . Wheel 5 | . . 2 . 1 2 . Hover . | . . . . . . . Flight 1 | . . . . . 1 . Utility 29 | . 3 1 1 . 18 6 Device 7 | . 1 . . . 5 1 Storage 6 | . 2 1 1 . 2 . Processor 3 | . . . . . 2 1 Hackware 1 | . . . . . . 1 Protection 12 | . . . . . 9 3 Artifact . | . . . . . . . Weapon 54 | 2 9 3 . 1 25 14 Energy Gun 9 | . 4 . . . 3 2 Energy Cannon 10 | . . 1 . 1 5 3 Ballistic Gun 20 | 2 2 2 . . 11 3 Ballistic Cannon . | . . . . . . . Launcher 10 | . 3 . . . 2 5 Special Weapon . | . . . . . . . Impact Weapon . | . . . . . . . Slashing Weapon 5 | . . . . . 4 1 Piercing Weapon . | . . . . . . . Special Melee Weapon . | . . . . . . . Unidentified Prototypes 8 | . . . . . 5 3 Parts Lost 34 | . . 7 . 3 16 8 Power 6 | . . 1 . 1 1 3 Propulsion 9 | . . 2 . 1 5 1 Utility 8 | . . 1 . . 4 3 Weapon 11 | . . 3 . 1 6 1 Highest Loss Streak 6 | . . 6 . 2 5 2 Average Slot Usage (%) 94 | . 97 91 100 97 92 96 Engine 6 | . 14 13 14 13 1 . Core 3 | . . . . . 5 8 Treads 14 | . 27 8 . . 11 26 Leg 6 | . . 8 14 14 9 . Wheel 4 | . . 8 14 13 3 . Device 9 | . 13 10 . . 9 11 Storage 17 | . 13 17 28 28 17 18 Processor 4 | . . . . . 8 3 Protection 4 | . . . . . 6 9 Energy Gun 4 | . 10 4 . . 3 4 Energy Cannon 6 | . . 9 14 13 6 6 Ballistic Gun 8 | . 16 9 14 14 5 3 Naked Turns . | . . . . . . . Heaviest Build 58 | 6 43 58 58 42 57 56 Greatest Support 60 | 40 40 40 16 16 60 60 Greatest Overweight (x) 13 | . 2 13 3 4 4 1 Average Overweight (x) 1 | . . 2 2 3 1 . Largest Inventory Capacity 18 | 4 12 18 18 16 16 16 Average Capacity 14 | 4 10 13 16 16 15 16 Most Carried 16 | 3 12 12 12 12 16 16 Average Carried 12 | 1 7 10 11 11 14 15 Final Capacity 18 | 4 12 18 16 16 16 16 Final Carried 16 | 3 12 11 12 11 16 16 Class Distribution -------------------- 65% | Mutant 34% | Scavenger-Mutant Dominant Class ---------------- Mutant | -10/Materials Mutant | -10/Mines Mutant | -10/Exiles Mutant | -9/Mines Scavenger-Mutant | -8/Materials Scavenger-Mutant | -8/Storage Resources | -11 -10 -10 -10 -9 -8 -8 ----------- Run | Scr Mat Min Exi Min Mat Sto Matter Collected 2095 | 250 217 162 . 85 906 475 Remotely . | . . . . . . . Salvage Created 3767 | . 521 195 . 82 1856 1113 Parts 209 | . 39 20 . 7 80 63 Haulers Intercepted 3 | . . . . . 1 2 Recyclers Shooed 7 | . 2 . . . 5 . Parts Field Recycled . | . . . . . . . Retrieved Matter . | . . . . . . . Parts Self-Destructed . | . . . . . . . Prevented . | . . . . . . . Kills | -11 -10 -10 -10 -9 -8 -8 ------- Run | Scr Mat Min Exi Min Mat Sto Combat Hostiles Destroyed 86 | . 14 7 . 3 40 22 Guns 40 | . 6 3 . 2 18 11 Cannons 26 | . . 4 . 1 15 6 AOE 20 | . 8 . . . 7 5 Classes Destroyed 14 | . 6 1 . 1 4 2 Worker 6 | . 2 1 . . 3 . Builder 4 | . 1 1 . . 1 1 Tunneler 1 | . . 1 . . . . Hauler 3 | . . . . . 1 2 Recycler 3 | . 1 . . . 2 . Operator 4 | . 2 . . . 1 1 Watcher 1 | . . . . . . 1 Swarmer 30 | . 8 6 . . 11 5 Grunt 32 | . 6 1 . 2 15 8 Brawler 3 | . . . . . 1 2 Duelist 4 | . . . . 1 2 1 Protector 1 | . . . . . . 1 Sentry 14 | . . . . . 9 5 Hunter 2 | . . . . . 2 . Thug 1 | . . . . . . 1 Best Kill Streak 15 | . 7 3 . 2 6 15 Combat Bots Only 8 | . 7 3 . 2 4 8 Max Kills in Single Turn 6 | . 6 2 . 1 3 3 Gunslinging 1 | . . 1 . . . . Exploded 6 | . 6 . . . 2 3 Melee . | . . . . . . . Uniques/NPCs Destroyed . | . . . . . . . Combat | -11 -10 -10 -10 -9 -8 -8 -------- Run | Scr Mat Min Exi Min Mat Sto Damage Taken 5359 | . 377 462 38 369 2636 1477 Core 762 | . 48 87 . 76 348 203 Absorbed by Shields . | . . . . . . . Core Remaining (%) 57 | 100 . . . 15 . . Volleys Fired 317 | . 37 29 1 21 148 81 Largest 2 | . 2 2 1 1 2 2 Hottest 160 | . 60 81 25 56 136 160 Shots Fired 522 | . 66 45 1 21 270 119 Gun 326 | . 61 37 1 13 153 61 Cannon 179 | . . 8 . 8 113 50 Launcher 17 | . 5 . . . 4 8 Special . | . . . . . . . Kinetic 234 | . 33 33 1 13 117 37 Thermal 189 | . . . . . 136 53 Explosive 8 | . . . . . 2 6 Electromagnetic 91 | . 33 12 . 8 15 23 Robot Hit Streak 19 | . 6 8 1 4 19 18 Robot Miss Streak 5 | . 3 3 1 5 4 2 Penetration Max . | . . . . . . . Secondary Targets 1 | . . 1 . . . . Max Gunslinging Chain 1 | . . 1 . . . . Shots Hit Robots 373 | . 35 30 1 13 206 88 Core Hits 183 | . 27 13 . 7 85 51 Critical Hits 11 | . . 1 . . 9 1 Critical Kills 7 | . . . . . 6 1 Critical Parts Destroyed 4 | . . 1 . . 3 . Melee Attacks 30 | . . . . . 15 15 Impact . | . . . . . . . Slashing 30 | . . . . . 15 15 Piercing . | . . . . . . . Sneak Attacks . | . . . . . . . Combat Hostiles . | . . . . . . . Follow-up Attacks . | . . . . . . . Damage Inflicted 8702 | . 986 404 14 309 4033 2956 Guns 3802 | . 494 264 14 194 1825 1011 Cannons 2759 | . . 140 . 115 1534 970 Explosions 2136 | . 492 . . . 669 975 Melee . | . . . . . . . Ramming 5 | . . . . . 5 . Kinetic 2496 | . 230 231 14 194 1265 562 Thermal 3149 | . 224 . . . 1941 984 Explosive 1153 | . . . . . 544 609 Electromagnetic 1899 | . 532 173 . 115 278 801 Impact . | . . . . . . . Slashing . | . . . . . . . Piercing . | . . . . . . . Highest Corruption 8 | . . . . . 4 8 Average Corruption 4 | . . . . . 3 5 Corruption Purged . | . . . . . . . Effects 50 | . . . . . 18 32 Message Errors 16 | . . . . . 4 12 Matter Fused 8 | . . . . . 3 5 Heat Flow Errors 6 | . . . . . 4 2 Energy Discharges 4 | . . . . . 4 . Data Loss (minor) 3 | . . . . . . 3 Data Loss (major) 1 | . . . . . . 1 Targeting Errors 11 | . . . . . 3 8 Weapon Failures 1 | . . . . . . 1 Overload Shots . | . . . . . . . Overflow Damage 97 | . 14 . . . 20 63 Projectiles 25 | . . . . . 3 22 Explosions 72 | . 14 . . . 17 41 Melee . | . . . . . . . Knockbacks . | . . . . . . . Impact . | . . . . . . . Kinetic . | . . . . . . . Secondary . | . . . . . . . Self-Inflicted Damage 95 | . 12 . . . 43 40 Shots 5 | . 1 . . . 3 1 Rammed 3 | . . . . . 3 . Targets Rammed 3 | . . . . . 3 . Kicked . | . . . . . . . Crushed . | . . . . . . . Highest Temperature 413 | . . 21 . 97 413 283 Average Temperature 70 | . . 10 . 49 54 122 Received Heat Transfer 1743 | . 126 135 . 141 909 432 Effects 1 | . . . . . 1 . Short Circuit 1 | . . . . . 1 . Siege Activations . | . . . . . . . Robots Corrupted . | . . . . . . . Combat Hostiles . | . . . . . . . Parts Fried 4 | . 1 . . . 1 2 Impact Corruptions . | . . . . . . . Robots Melted . | . . . . . . . Combat Hostiles . | . . . . . . . Parts Melted 8 | . . . . . 5 3 Heat Transferred 5931 | . 400 . . . 3602 1929 Parts Sabotaged . | . . . . . . . Parts Stolen . | . . . . . . . Parts Stripped . | . . . . . . . Power Chain Reactions 6 | . 5 . . . 1 . Missiles Intercepted . | . . . . . . . Alert | -11 -10 -10 -10 -9 -8 -8 ------- Run | Scr Mat Min Exi Min Mat Sto Peak Influence 668 | . 295 244 . 60 668 637 Average Influence 257 | . 115 84 . 38 335 447 Maximum Alert Level 2 | . 1 1 . . 2 2 Low Security (%) 45 | 100 64 97 . 100 27 . Level 1 26 | . 35 2 . . 33 35 Level 2 28 | . . . . . 39 64 Level 3 . | . . . . . . . Level 4 . | . . . . . . . Level 5 . | . . . . . . . High Security . | . . . . . . . Max Security . | . . . . . . . Squads Dispatched 17 | . 3 . . . 5 9 Investigation 4 | . 1 . . . 1 2 Extermination . | . . . . . . . Reinforcement 5 | . 2 . . . 1 2 Assault 2 | . . . . . . 2 Garrison 6 | . . . . . 3 3 Intercept . | . . . . . . . Construction Impeded . | . . . . . . . Haulers Reinforced . | . . . . . . . Stealth | -11 -10 -10 -10 -9 -8 -8 --------- Run | Scr Mat Min Exi Min Mat Sto Distress Signals 11 | . 6 . . . 4 1 Communications Jammed . | . . . . . . . Distress Signals . | . . . . . . . Times Spotted 157 | . 33 9 3 4 60 48 Peak Tracking Total 10 | . 9 3 10 2 6 10 Tactical Retreats 10 | . 4 . 1 . 2 3 Traps | -11 -10 -10 -10 -9 -8 -8 ------- Run | Scr Mat Min Exi Min Mat Sto Traps Triggered 7 | . 3 1 . . 2 1 Indirectly 1 | . 1 . . . . . Trap Hack Attempts . | . . . . . . . Triggered . | . . . . . . . Disarmed . | . . . . . . . Reprogrammed . | . . . . . . . Reused . | . . . . . . . Traps Extracted . | . . . . . . . Installed . | . . . . . . . Triggered . | . . . . . . . Machines | -11 -10 -10 -10 -9 -8 -8 ---------- Run | Scr Mat Min Exi Min Mat Sto Machines Disabled 6 | . 1 . 1 . 2 2 Max in Single Turn 1 | . 1 . 1 . 1 1 Machines Sabotaged . | . . . . . . . Garrisons Compromised . | . . . . . . . Overloaded Fab Kills . | . . . . . . . Fab Network Shutdowns . | . . . . . . . Hacking | -11 -10 -10 -10 -9 -8 -8 --------- Run | Scr Mat Min Exi Min Mat Sto Machines Accessed 17 | . 1 1 2 . 5 8 Terminals 12 | . 1 . . . 3 8 Fabricators . | . . . . . . . Repair Stations . | . . . . . . . Recycling Units . | . . . . . . . Scanalyzers 1 | . . . . . 1 . Garrison Access 1 | . . . . . 1 . Total Hacks 38 | . 2 1 2 . 12 21 Successful 21 | . 1 1 2 . 8 9 Failed 17 | . 1 . . . 4 12 Catastrophic 2 | . . . . . . 2 Database Lockouts . | . . . . . . . Manual 16 | . 2 . 1 . 2 11 Terminals 27 | . 2 . . . 4 21 Fabricators . | . . . . . . . Repair Stations . | . . . . . . . Recycling Units . | . . . . . . . Scanalyzers 6 | . . . . . 6 . Garrison Access 2 | . . . . . 2 . Terminal Hacks 14 | . . 1 2 . 3 8 Record 1 | . . . 1 . . . Open Door 3 | . . 1 . . . 2 Branch Access Points 1 | . . . . . 1 . Terminal Index 1 | . . . . . . 1 Alert Level 2 | . . . . . . 2 Unreport Threat 2 | . . . . . . 2 Transport Status 1 | . . . . . 1 . Hauler Manifests 2 | . . . . . 1 1 EX-Prototype ID Bank 1 | . . . 1 . . . Fabricator Hacks . | . . . . . . . Repair Station Hacks . | . . . . . . . Recycling Unit Hacks . | . . . . . . . Scanalyzer 5 | . . . . . 5 . Insert Component 2 | . . . . . 2 . Analyze 3 | . . . . . 3 . Garrison Access Hacks . | . . . . . . . Unauthorized Hacks 2 | . 1 . . . . 1 Terminals 2 | . 1 . . . . 1 Botnet 1 | . . . . . . 1 Operators 1 | . 1 . . . . . Fabricators . | . . . . . . . Repair Stations . | . . . . . . . Recycling Units . | . . . . . . . Scanalyzers . | . . . . . . . Garrison Access . | . . . . . . . Data Cores Recovered . | . . . . . . . Used . | . . . . . . . Hacking Detections 11 | . 1 . . . 3 7 Full Trace Events 2 | . . . . . 1 1 Feedback Events . | . . . . . . . Feedback Blocked . | . . . . . . . Robot Schematics Acquired . | . . . . . . . Robots Built . | . . . . . . . Matter . | . . . . . . . Time . | . . . . . . . Total Robot Build Rating . | . . . . . . . Part Schematics Acquired 2 | . . . . . 2 . Parts Built . | . . . . . . . Matter . | . . . . . . . Time . | . . . . . . . Total Part Build Rating . | . . . . . . . Parts Repaired . | . . . . . . . Time . | . . . . . . . Parts Recycled . | . . . . . . . Recycled Matter . | . . . . . . . Retrieved Matter . | . . . . . . . Retrieved Components . | . . . . . . . Parts Scanalyzed 2 | . . . . . 2 . Part Schematics Acquired 2 | . . . . . 2 . Parts Damaged . | . . . . . . . Bothacking | -11 -10 -10 -10 -9 -8 -8 ------------ Run | Scr Mat Min Exi Min Mat Sto Used RIF Installer . | . . . . . . . Robots Hacked . | . . . . . . . Non-combat . | . . . . . . . Combat . | . . . . . . . Robot Hacks Applied . | . . . . . . . Relay Couplers Released . | . . . . . . . Robots Rewired . | . . . . . . . Allies Hacked . | . . . . . . . Hacks Repelled . | . . . . . . . Allies | -11 -10 -10 -10 -9 -8 -8 -------- Run | Scr Mat Min Exi Min Mat Sto Total Allies 2 | . . . . . . 2 Largest Group 2 | . . . . . . 2 Highest-Rated Group 62 | . . . . . . 62 Highest-Rated Ally 31 | . . . . . . 31 Total Orders . | . . . . . . . Ally Attacks 16 | . . . . . . 16 Total Damage 250 | . . . . . . 250 Kills 3 | . . . . . . 3 Allies Corrupted . | . . . . . . . Allies Melted 1 | . . . . . . 1 Intel | -11 -10 -10 -10 -9 -8 -8 ------- Run | Scr Mat Min Exi Min Mat Sto Robot Analysis Total . | . . . . . . . Derelict Logs Recovered 2 | . . 1 . 1 . . Drone Launches . | . . . . . . . Drone Recoveries . | . . . . . . . Exploration | -11 -10 -10 -10 -9 -8 -8 ------------- Run | Scr Mat Min Exi Min Mat Sto Turns Passed 5091 | 85 732 889 264 190 2081 850 Spaces Moved 2581 | 53 325 557 209 120 992 325 Core 20 | 9 . 4 . . 7 . Treads 1180 | 44 325 142 . . 344 325 Legs 317 | . . . . 1 316 . Wheels 1064 | . . 411 209 119 325 . Hover . | . . . . . . . Flight . | . . . . . . . Fastest Speed 50 | 50 160 120 120 110 110 160 Average Speed 148 | 141 173 142 124 120 147 163 Slowest Speed 700 | 160 200 700 130 240 210 180 Overloaded Moves . | . . . . . . . Propulsion Burnouts . | . . . . . . . Robots Hopped . | . . . . . . . Cave-ins Triggered . | . . . . . . . Exploration Rate (%) 53 | 5 51 94 59 44 67 54 Regions Visited 6 Branch Regions 4 Pre-discovered Areas 2 | . . . 1 1 . . Known Exits Taken 1 | . . . . . 1 . Unknown Exits Taken 5 | 1 1 1 1 1 . . Scrap Searched 3 | . . 2 . 1 . . Spaces Dug 29 | . . . . . 15 14 Terrain Destroyed 159 | . 10 . . . 77 72 Melee 29 | . . . . . 15 14 Projectile 11 | . . . . . . 11 AOE 119 | . 10 . . . 62 47 Actions | -11 -10 -10 -10 -9 -8 -8 --------- Run | Scr Mat Min Exi Min Mat Sto Total 3280 | 61 423 610 212 143 1327 504 Wait 112 | 1 33 12 . . 33 33 Move 2575 | 52 324 556 208 119 991 325 Hop . | . . . . . . . Pick Up 58 | 3 12 3 1 . 36 3 Fast Attach 52 | 5 5 4 . . 26 12 Attach 27 | . 2 4 . 2 13 6 Detach 8 | . . 1 . . 4 3 Swap 44 | . 7 . 1 1 24 11 Drop 54 | . 3 1 1 . 34 15 Fire 317 | . 37 29 1 21 148 81 Melee 30 | . . . . . 15 15 Ram . | . . . . . . . Kick 3 | . . . . . 3 . Crush . | . . . . . . . Escape Stasis . | . . . . . . . Rewire . | . . . . . . . Trap . | . . . . . . . Miscellaneous . | . . . . . . . Route ------- -11/Scrapyard -10/Materials (discovered 2 exits: [*Mat] / *Min) -10/Mines (discovered 3 exits: [*Mat x2] / *Exi) -10/Exiles (discovered 2 exits: [*Min x2]) -9/Mines -8/Materials (discovered 4 exits: [*Fac x2] / *Sto x2) -8/Storage (discovered 1 exit: [*Fac]) History --------- Turn | Location | Event 6 | -11/Scrapyard | Discovered new exit (range 15) 86 | -11/Scrapyard | Entered Materials 221 | -10/Materials | Discovered new exit (range 13) 305 | -10/Materials | Build established: Mutant 485 | -10/Materials | Destroyed 7 combat bots 781 | -10/Materials | Discovered new exit (range 7) 818 | -10/Materials | Entered Mines 845 | -10/Mines | Deemed a non-threat by the Exiles lab entrance 935 | -10/Mines | Learned Materials emergency access door positions 1107 | -10/Mines | Core integrity fell below 50% 1154 | -10/Mines | Lost 6 parts (1p2n3w) 1401 | -10/Mines | Discovered new exit (range 10) 1406 | -10/Mines | Discovered new exit (range 11) 1438 | -10/Mines | Met a Derelict who couldn't figure out how to use a Trap Extractor 1667 | -10/Mines | Found a hidden stash of uninstalled traps 1702 | -10/Mines | Discovered new exit (range 5) 1707 | -10/Mines | Entered Exiles 1724 | -10/Exiles | Discovered new exit (range 15) 1740 | -10/Exiles | Met 8R-AWN 1761 | -10/Exiles | Met EX-HEX 1796 | -10/Exiles | Met EX-BIN 1811 | -10/Exiles | Aligned with FarCom system 1813 | -10/Exiles | Given EX-Vault access code 1846 | -10/Exiles | Opened EX-Vault 1854 | -10/Exiles | Found AWS/Thermal 1879 | -10/Exiles | Warned to stay clear of 0b10 Research branches 1916 | -10/Exiles | Met EX-DEC 1923 | -10/Exiles | Learned location of Zion (-7) 1932 | -10/Exiles | Attacked by the Exiles 1959 | -10/Exiles | Discovered new exit (range 12) 1971 | -10/Exiles | Left Exiles lab with AWS/Thermal 1971 | -10/Exiles | Entered Mines 1980 | -9/Mines | Met a Derelict bent on vengeance 2124 | -9/Mines | Discovered new exit (range 13) 2143 | -9/Mines | Core integrity fell below 20% 2161 | -9/Mines | Entered Materials 2161 | -8/Materials | Evolved 4 slots: Propulsion x1, Utility x3 2398 | -8/Materials | Discovered new exit (range 9) 2530 | -8/Materials | Lost 3 parts (2u1w) 2741 | -8/Materials | Lost 3 parts (2n1w) 2871 | -8/Materials | Lost 5 parts (1p2n1u1w) 3065 | -8/Materials | Identified exit to Storage 3163 | -8/Materials | Core integrity fell below 50% 3312 | -8/Materials | Garrison activated, responded to threat 3340 | -8/Materials | Build established: Scavenger-Mutant 3817 | -8/Materials | Discovered new exit (range 5) 4041 | -8/Materials | Discovered new exit (range 10) 4242 | -8/Materials | Entered Storage 4296 | -8/Storage | Garrison activated, responded to threat 4440 | -8/Storage | Destroyed 8 combat bots 4746 | -8/Storage | Met a pair of Derelict thieves 4767 | -8/Storage | Discovered new exit (range 16) 4882 | -8/Storage | Core integrity fell below 20% 5092 | -8/Storage | Destroyed by L-31 Rogue with Katana Last Messages --------------- 04985_ System corrupted: Katana targeting data glitched. 04985_ Terminal disabled. 04991_ FBPDJU15K&J1,|T7XEHS0 AB>Alert(Check) Current Alert Level: 1-Y 05050_ R-06 Scavenger collects Heat Sink. 05054_ R-06 Scavenger collects Imp. Ion Engine. 05063_ Slug penetrates Wall. 05085_ Slug penetrates L-31 Rogue. 05087_ Lgt. Nuclear Core destroyed. 05088_ Destroyed Imp. Ion Engine. 05088_ Slug penetrates L-31 Rogue. Map ----- +----------------------------------------------------+ | ?????????????????????????????????????????????????? | | ?????????????????????????????????????????????????? | | ?????????????????????????????????????????????????? | | ?????????????????????????????????????????????????? | | ?????????????????????????????????????????????????? | | ?????????????????????????????????????????????????? | | ?????????????????????????????????????????????????? | | ?????????????????????????????????????????????????? | | ?????????????????????????????????????????????????? | | ?????????????????????????????????????????????????? | | ?????????????????????????????????????????????????? | | ?????????????????????????????????????????????????? | | ???????????????????????????????? #???????????????? | | ####??????????????????????????? #???????????????? | | ?????????????????????????? #???????????????? | | ?????????????????????????? /???????????????? | | ! ?????????????????????????? #???????????????? | | #????????????????????????????? #???????????????? | | ##???????????????????????????? #???????????????? | | #????????????????????????????? #???????????????? | | ?????????????????????????????? #???????????????? | | ?????????????????????????????? #???????????????? | | ?????????????????????????????? #???????????????? | | ?????????????################# #???????????????? | | ????????????# g #???????????????? | | ????????????# @l #???????????????? | | ????????????# g #???????????????? | | ???###???????###############+#####???????????????? | | ???# #??????????????????# #???????????????? | | ???#]##?????????????????# """ #???????????????? | | ???#]T#???????#####????##[% """ #???????????????? | | ####+########## #????#!!!! """ #???????????????? | | # ! #????##!!% #???????????????? | | ########### #?????#!! #???????????????? | | ""#???????#####?????# #???????????????? | | ""#?????????????????# #???????????????? | | T"#?????????????????# "T" #???????????????? | | ""#?????????????????#######"##???????????????? | | ""#??????????????????????# ##????????????????? | | T" ###???########????????##?# #?????????????????? | | "" #?????#* * *#??????## ### #?????????????????? | | #####?????#** * #?????## ### ##?????????????????? | | #???????# **#????##""##"##??????????????????? | | #???????? ??????# ""# #####????????????????? | | #???????##" "##?????##"# =/===#????????????????? | | #???????# T#??????###%*====#????????????????? | | ######### ##????????#[!#####????????????????? | | # ####+##############+###########??????????? | | !=#=T" ![*%== ^ #??????????? | | =%+ /" ! !%! %]%%[ ^< #??????????? | +----------------------------------------------------+ Best States ------------- Heat Dissipation 85 Energy Generation 14 Energy Capacity 265 Matter Stores 300 Matter Capacity 300 Sight Range 20 Terrain Scan Density 10 Armor Coverage 375 Evasion (%) 40 Targeting Accuracy 8 Recoil Reduction 3 Offensive Hacking 10 Item Schematics ----------------- Hacking Suite | -8/Materials | Scanalyzed Imp. VTOL Module | -8/Materials | Scanalyzed Robot Schematics ------------------ None Fabricated ------------ Nothing Alien Tech Used ----------------- None Achievements -------------- None Challenges ------------ None Game ------ Seed GravmagFireFalx Manual? 0 Play Time 00:49:34 Cumulative 235.9 hours Start 2020.05.30 @ 14:37:21 End 2020.06.01 @ 16:47:58 Sessions 11 Manual Loads 0 Difficulty Rogue Special Mode None Game No. 382 Rogue 382 Adventurer 0 Explorer 0 Win Type - Total 5 Types 3/0/1/1/0/0/0 Lore% 79 Gallery% 80 Achievement% 60 Wizard Run 0 Options --------- ASCII 0 Keyboard 1 Movement Numpad Keybinds 0 Fullscreen 1 Font 18/X11Bold Map View 76x50 Tactical HUD 1 Map Filters NONE Filters NONE Steam 1 RUN: 9f8a40f6-a16d-46e3-b8e7-2fc8bc66905a